[Event "Titled Tuesday Blitz August 08 Early 2023"]
[White "Begunov, Konstantin"]
[Black "Novikova, Margarita"]
[WhiteFideId "4118510"]
[BlackFideId "14109689"]
[WhiteElo "2423"]
[BlackElo "2117"]
[Result "1-0"]
[Round "4"]
[TimeControl "180+1"]
[Date "2023.08.08"]
[WhiteClock "0:00:05"]
[BlackClock "0:00:26"]
[Board "218"]

1. d4 {[%clk 0:02:57]}  d5 {[%clk 0:02:56]} 2. c4 {[%clk 0:02:56]}  e6 {[%clk 0:02:55]} 3. Nc3 {[%clk 0:02:56]}  Nf6 {[%clk 0:02:55]} 4. cxd5 {[%clk 0:02:56]}  exd5 {[%clk 0:02:55]} 5. Bg5 {[%clk 0:02:56]}  Be7 {[%clk 0:02:54]} 6. e3 {[%clk 0:02:57]}  c6 {[%clk 0:02:54]} 7. Qc2 {[%clk 0:02:57]}  h6 {[%clk 0:02:52]} 8. Bh4 {[%clk 0:02:56]}  Be6 {[%clk 0:02:48]} 9. Nf3 {[%clk 0:02:56]}  Nbd7 {[%clk 0:02:46]} 10. Bd3 {[%clk 0:02:56]}  Bg4 {[%clk 0:02:40]} 11. O-O-O {[%clk 0:02:38]}  Bxf3 {[%clk 0:02:30]} 12. gxf3 {[%clk 0:02:38]}  Qa5 {[%clk 0:02:31]} 13. e4 {[%clk 0:02:20]}  g5 {[%clk 0:02:30]} 14. Bg3 {[%clk 0:02:13]}  Nh5 {[%clk 0:02:30]} 15. exd5 {[%clk 0:02:00]}  Nxg3 {[%clk 0:02:27]} 16. hxg3 {[%clk 0:01:52]}  cxd5 {[%clk 0:02:23]} 17. Rde1 {[%clk 0:01:28]}  Kf8 {[%clk 0:02:23]} 18. Qb3 {[%clk 0:00:53]}  Nb6 {[%clk 0:02:13]} 19. Re5 {[%clk 0:00:26]}  Rd8 {[%clk 0:02:05]} 20. Rhe1 {[%clk 0:00:21]}  Bf6 {[%clk 0:02:01]} 21. Rf5 {[%clk 0:00:21]}  Bxd4 {[%clk 0:02:01]} 22. Kb1 {[%clk 0:00:17]}  Qc5 {[%clk 0:01:13]} 23. Be4 {[%clk 0:00:14]}  Nc4 {[%clk 0:01:08]} 24. Rd1 {[%clk 0:00:12]}  dxe4 {[%clk 0:00:59]} 25. Rxc5 {[%clk 0:00:11]}  Nb6 {[%clk 0:00:44]} 26. Nxe4 {[%clk 0:00:08]}  Kg7 {[%clk 0:00:44]} 27. Rcc1 {[%clk 0:00:07]}  Be5 {[%clk 0:00:43]} 28. g4 {[%clk 0:00:07]}  h5 {[%clk 0:00:40]} 29. Rxd8 {[%clk 0:00:07]}  Rxd8 {[%clk 0:00:39]} 30. Rd1 {[%clk 0:00:08]}  Rc8 {[%clk 0:00:38]} 31. gxh5 {[%clk 0:00:08]}  Bf4 {[%clk 0:00:38]} 32. a3 {[%clk 0:00:08]}  Nc4 {[%clk 0:00:38]} 33. Qb5 {[%clk 0:00:07]}  a6 {[%clk 0:00:37]} 34. Qf5 {[%clk 0:00:07]}  Rc7 {[%clk 0:00:35]} 35. Qf6+ {[%clk 0:00:06]}  Kg8 {[%clk 0:00:26]} 36. Rd8+ {[%clk 0:00:05]} 1-0


[Site "https://www.chess.com"]

[Event "Titled Tuesday Blitz August 08 Early 2023"]
[White "Kukreja Sankalp"]
[Black "Semenova, Alina"]
[WhiteFideId "45027676"]
[BlackFideId "24113875"]
[WhiteElo "2423"]
[BlackElo "2087"]
[Result "1-0"]
[Round "4"]
[TimeControl "180+1"]
[Date "2023.08.08"]
[WhiteClock "0:00:36"]
[BlackClock "0:00:51"]
[Board "219"]

1. e4 {[%clk 0:02:55]}  e6 {[%clk 0:02:59]} 2. d4 {[%clk 0:02:54]}  d5 {[%clk 0:02:59]} 3. Nc3 {[%clk 0:02:50]}  Bb4 {[%clk 0:02:58]} 4. Ne2 {[%clk 0:02:49]}  dxe4 {[%clk 0:02:56]} 5. a3 {[%clk 0:02:49]}  Be7 {[%clk 0:02:55]} 6. Nxe4 {[%clk 0:02:48]}  Nf6 {[%clk 0:02:55]} 7. N2c3 {[%clk 0:02:47]}  O-O {[%clk 0:02:54]} 8. Bd3 {[%clk 0:02:47]}  Nbd7 {[%clk 0:02:52]} 9. O-O {[%clk 0:02:47]}  h6 {[%clk 0:02:47]} 10. Qe2 {[%clk 0:02:42]}  c5 {[%clk 0:02:45]} 11. dxc5 {[%clk 0:02:30]}  Nxc5 {[%clk 0:02:43]} 12. Nxc5 {[%clk 0:02:30]}  Bxc5 {[%clk 0:02:42]} 13. Bf4 {[%clk 0:02:31]}  Bd6 {[%clk 0:02:32]} 14. Bxd6 {[%clk 0:02:24]}  Qxd6 {[%clk 0:02:33]} 15. Rad1 {[%clk 0:02:25]}  Qb6 {[%clk 0:02:23]} 16. b3 {[%clk 0:02:13]}  Bd7 {[%clk 0:02:20]} 17. Ne4 {[%clk 0:02:12]}  Nxe4 {[%clk 0:02:07]} 18. Qxe4 {[%clk 0:02:12]}  g6 {[%clk 0:02:07]} 19. Qf4 {[%clk 0:02:08]}  Kh7 {[%clk 0:02:03]} 20. Bxg6+ {[%clk 0:02:06]}  Kxg6 {[%clk 0:02:03]} 21. Rxd7 {[%clk 0:02:06]}  Rad8 {[%clk 0:02:02]} 22. Rfd1 {[%clk 0:02:01]}  Rxd7 {[%clk 0:01:47]} 23. Rxd7 {[%clk 0:02:01]}  Qa5 {[%clk 0:01:45]} 24. h4 {[%clk 0:01:55]}  h5 {[%clk 0:01:42]} 25. Rxb7 {[%clk 0:01:46]}  Qxa3 {[%clk 0:01:37]} 26. Qg5+ {[%clk 0:01:45]}  Kh7 {[%clk 0:01:36]} 27. Qxh5+ {[%clk 0:01:45]}  Kg7 {[%clk 0:01:37]} 28. Rb5 {[%clk 0:01:36]}  Qc1+ {[%clk 0:01:31]} 29. Kh2 {[%clk 0:01:35]}  Qf4+ {[%clk 0:01:30]} 30. Kh1 {[%clk 0:01:36]}  Qc1+ {[%clk 0:01:30]} 31. Kh2 {[%clk 0:01:33]}  Qf4+ {[%clk 0:01:29]} 32. Kh3 {[%clk 0:01:32]}  f5 {[%clk 0:01:27]} 33. Rb7+ {[%clk 0:01:30]}  Kf6 {[%clk 0:01:27]} 34. g3 {[%clk 0:01:22]}  Qe4 {[%clk 0:01:17]} 35. Qg5+ {[%clk 0:01:18]}  Ke5 {[%clk 0:01:17]} 36. Qg7+ {[%clk 0:01:13]}  Kd5 {[%clk 0:01:13]} 37. Rb5+ {[%clk 0:01:06]}  Kc6 {[%clk 0:01:13]} 38. Qb7+ {[%clk 0:01:04]}  Kd6 {[%clk 0:01:10]} 39. Qa6+ {[%clk 0:00:59]}  Ke7 {[%clk 0:01:03]} 40. Rb7+ {[%clk 0:00:37]}  Kf6 {[%clk 0:01:00]} 41. Qa1+ {[%clk 0:00:37]}  e5 {[%clk 0:00:51]} 42. Qa6+ {[%clk 0:00:36]} 1-0


[Site "https://www.chess.com"]

[Event "Titled Tuesday Blitz August 08 Early 2023"]
[White "Yuruultei Batbaatar"]
[Black "Vedder, Richard"]
[WhiteFideId "4905962"]
[BlackFideId "1004166"]
[WhiteElo "2064"]
[BlackElo "2419"]
[Result "1-0"]
[Round "4"]
[TimeControl "180+1"]
[Date "2023.08.08"]
[WhiteClock "0:01:31"]
[BlackClock "0:02:12"]
[Board "221"]

1. d4 {[%clk 0:02:56]}  d5 {[%clk 0:02:59]} 2. c4 {[%clk 0:02:54]}  dxc4 {[%clk 0:03:00]} 3. Nf3 {[%clk 0:02:50]}  c5 {[%clk 0:02:57]} 4. e3 {[%clk 0:02:49]}  e6 {[%clk 0:02:55]} 5. Bxc4 {[%clk 0:02:49]}  Nc6 {[%clk 0:02:55]} 6. O-O {[%clk 0:02:49]}  Nf6 {[%clk 0:02:55]} 7. Nc3 {[%clk 0:02:47]}  cxd4 {[%clk 0:02:54]} 8. exd4 {[%clk 0:02:47]}  Be7 {[%clk 0:02:55]} 9. Bg5 {[%clk 0:02:46]}  O-O {[%clk 0:02:55]} 10. a3 {[%clk 0:02:45]}  Na5 {[%clk 0:02:55]} 11. Ba2 {[%clk 0:02:42]}  b6 {[%clk 0:02:55]} 12. Qd3 {[%clk 0:02:40]}  Bb7 {[%clk 0:02:55]} 13. Ne5 {[%clk 0:02:38]}  Nd5 {[%clk 0:02:51]} 14. Bxd5 {[%clk 0:02:20]}  Bxg5 {[%clk 0:02:46]} 15. Bxb7 {[%clk 0:02:17]}  Nxb7 {[%clk 0:02:46]} 16. Rfd1 {[%clk 0:02:08]}  Qd6 {[%clk 0:02:35]} 17. Ne4 {[%clk 0:02:04]}  Qe7 {[%clk 0:02:33]} 18. Nc6 {[%clk 0:02:03]}  Qe8 {[%clk 0:02:25]} 19. Nxg5 {[%clk 0:02:02]}  f5 {[%clk 0:02:21]} 20. Rac1 {[%clk 0:01:38]}  Nd6 {[%clk 0:02:19]} 21. d5 {[%clk 0:01:34]}  e5 {[%clk 0:02:17]} 22. Ne6 {[%clk 0:01:33]}  Rf6 {[%clk 0:02:12]} 23. Nxe5 {[%clk 0:01:31]} 1-0


[Site "https://www.chess.com"]

[Event "Titled Tuesday Blitz August 08 Early 2023"]
[White "Hrbek, Stepan"]
[Black "sasvathaa"]
[WhiteFideId "393479"]
[WhiteElo "2419"]
[BlackElo "2046"]
[Result "1-0"]
[Round "4"]
[TimeControl "180+1"]
[Date "2023.08.08"]
[WhiteClock "0:00:12"]
[BlackClock "0:00:25"]
[Board "222"]

1. d4 {[%clk 0:03:00]}  Nf6 {[%clk 0:02:58]} 2. Nf3 {[%clk 0:02:59]}  d5 {[%clk 0:02:55]} 3. Bf4 {[%clk 0:02:59]}  Bf5 {[%clk 0:02:53]} 4. e3 {[%clk 0:02:58]}  e6 {[%clk 0:02:52]} 5. c4 {[%clk 0:02:58]}  c6 {[%clk 0:02:51]} 6. Nc3 {[%clk 0:02:58]}  Bb4 {[%clk 0:02:47]} 7. Bd3 {[%clk 0:02:57]}  Ne4 {[%clk 0:02:46]} 8. Bxe4 {[%clk 0:02:55]}  Bxe4 {[%clk 0:02:38]} 9. O-O {[%clk 0:02:54]}  Bxc3 {[%clk 0:02:37]} 10. bxc3 {[%clk 0:02:55]}  dxc4 {[%clk 0:02:37]} 11. Ne5 {[%clk 0:02:47]}  b5 {[%clk 0:02:25]} 12. Qg4 {[%clk 0:02:39]}  O-O {[%clk 0:02:17]} 13. h4 {[%clk 0:02:20]}  f5 {[%clk 0:01:57]} 14. Qg3 {[%clk 0:02:17]}  Nd7 {[%clk 0:01:52]} 15. f3 {[%clk 0:02:13]}  Bc2 {[%clk 0:01:40]} 16. Nxc6 {[%clk 0:02:08]}  Qf6 {[%clk 0:01:32]} 17. Ne5 {[%clk 0:02:05]}  Nxe5 {[%clk 0:01:28]} 18. Bxe5 {[%clk 0:02:05]}  Qf7 {[%clk 0:01:27]} 19. Rae1 {[%clk 0:01:32]}  a5 {[%clk 0:01:17]} 20. e4 {[%clk 0:01:30]}  b4 {[%clk 0:01:15]} 21. d5 {[%clk 0:01:19]}  exd5 {[%clk 0:01:09]} 22. exd5 {[%clk 0:01:20]}  b3 {[%clk 0:01:03]} 23. Rf2 {[%clk 0:01:14]}  a4 {[%clk 0:00:54]} 24. Bd4 {[%clk 0:01:01]}  a3 {[%clk 0:00:37]} 25. h5 {[%clk 0:00:48]}  h6 {[%clk 0:00:23]} 26. Rxc2 {[%clk 0:00:17]}  bxc2 {[%clk 0:00:22]} 27. Rc1 {[%clk 0:00:18]}  Rfb8 {[%clk 0:00:20]} 28. Rxc2 {[%clk 0:00:09]}  Rb2 {[%clk 0:00:20]} 29. Rc1 {[%clk 0:00:03]}  Rxa2 {[%clk 0:00:19]} 30. Re1 {[%clk 0:00:03]}  Rb2 {[%clk 0:00:19]} 31. Qd6 {[%clk 0:00:01]}  Rb7 {[%clk 0:00:19]} 32. Bc5 {[%clk 0:00:01]}  a2 {[%clk 0:00:19]} 33. Bd4 {[%clk 0:00:01]}  a1=Q {[%clk 0:00:18]} 34. Rxa1 {[%clk 0:00:01]}  Rxa1+ {[%clk 0:00:19]} 35. Kf2 {[%clk 0:00:02]}  Ra8 {[%clk 0:00:18]} 36. Qe5 {[%clk 0:00:02]}  Re8 {[%clk 0:00:17]} 37. Qd6 {[%clk 0:00:02]}  Rd7 {[%clk 0:00:17]} 38. Qc6 {[%clk 0:00:01]}  Rxd5 {[%clk 0:00:17]} 39. Qxc4 {[%clk 0:00:01]}  Rxd4 {[%clk 0:00:17]} 40. Qxd4 {[%clk 0:00:02]}  Qe7 {[%clk 0:00:17]} 41. c4 {[%clk 0:00:01]}  Qe5 {[%clk 0:00:17]} 42. Qd3 {[%clk 0:00:01]}  Qb2+ {[%clk 0:00:16]} 43. Kg3 {[%clk 0:00:01]}  Qe5+ {[%clk 0:00:15]} 44. Kh3 {[%clk 0:00:02]}  f4 {[%clk 0:00:15]} 45. Qg6 {[%clk 0:00:02]}  Qg5 {[%clk 0:00:15]} 46. Qxe8+ {[%clk 0:00:02]}  Kh7 {[%clk 0:00:16]} 47. Qg6+ {[%clk 0:00:03]}  Qxg6 {[%clk 0:00:16]} 48. hxg6+ {[%clk 0:00:03]}  Kxg6 {[%clk 0:00:16]} 49. Kg4 {[%clk 0:00:03]}  Kf6 {[%clk 0:00:17]} 50. Kxf4 {[%clk 0:00:04]}  Ke6 {[%clk 0:00:17]} 51. Kg4 {[%clk 0:00:05]}  Kd6 {[%clk 0:00:17]} 52. Kf5 {[%clk 0:00:05]}  Kc5 {[%clk 0:00:18]} 53. Kg6 {[%clk 0:00:06]}  Kxc4 {[%clk 0:00:18]} 54. Kxg7 {[%clk 0:00:06]}  Kd4 {[%clk 0:00:19]} 55. Kxh6 {[%clk 0:00:06]}  Ke3 {[%clk 0:00:20]} 56. Kg5 {[%clk 0:00:07]}  Kf2 {[%clk 0:00:20]} 57. f4 {[%clk 0:00:07]}  Kxg2 {[%clk 0:00:20]} 58. f5 {[%clk 0:00:08]}  Kg3 {[%clk 0:00:20]} 59. f6 {[%clk 0:00:09]}  Kf3 {[%clk 0:00:21]} 60. f7 {[%clk 0:00:10]}  Ke4 {[%clk 0:00:21]} 61. f8=Q {[%clk 0:00:11]}  Kd5 {[%clk 0:00:22]} 62. Kf5 {[%clk 0:00:11]}  Kc6 {[%clk 0:00:23]} 63. Ke5 {[%clk 0:00:11]}  Kb7 {[%clk 0:00:24]} 64. Kd5 {[%clk 0:00:11]}  Ka7 {[%clk 0:00:25]} 65. Kc6 {[%clk 0:00:11]}  Ka6 {[%clk 0:00:25]} 66. Qa8# {[%clk 0:00:12]} 1-0


[Site "https://www.chess.com"]

[Event "Titled Tuesday Blitz August 08 Early 2023"]
[White "Al Mutairi, Hassan S"]
[Black "Toktomushev, Teimur"]
[WhiteFideId "21500193"]
[BlackFideId "14176726"]
[WhiteElo "1709"]
[BlackElo "2418"]
[Result "0-1"]
[Round "4"]
[TimeControl "180+1"]
[Date "2023.08.08"]
[WhiteClock "0:00:29"]
[BlackClock "0:00:13"]
[Board "223"]

1. e4 {[%clk 0:03:00]}  c5 {[%clk 0:03:00]} 2. Nf3 {[%clk 0:03:00]}  e6 {[%clk 0:03:00]} 3. d4 {[%clk 0:02:57]}  cxd4 {[%clk 0:03:01]} 4. Nxd4 {[%clk 0:02:58]}  a6 {[%clk 0:03:02]} 5. Nc3 {[%clk 0:02:57]}  b5 {[%clk 0:03:02]} 6. Bd3 {[%clk 0:02:46]}  Bb7 {[%clk 0:03:02]} 7. O-O {[%clk 0:02:45]}  Nc6 {[%clk 0:03:03]} 8. Be3 {[%clk 0:02:44]}  Nf6 {[%clk 0:03:00]} 9. a3 {[%clk 0:02:41]}  Qc7 {[%clk 0:02:56]} 10. f4 {[%clk 0:02:27]}  Bc5 {[%clk 0:02:50]} 11. Nce2 {[%clk 0:02:27]}  Ng4 {[%clk 0:02:49]} 12. Qd2 {[%clk 0:02:20]}  Nxe3 {[%clk 0:02:31]} 13. Qxe3 {[%clk 0:02:21]}  d6 {[%clk 0:02:29]} 14. b4 {[%clk 0:02:11]}  Ba7 {[%clk 0:02:15]} 15. c3 {[%clk 0:01:57]}  e5 {[%clk 0:02:13]} 16. fxe5 {[%clk 0:01:56]}  dxe5 {[%clk 0:02:10]} 17. Qg5 {[%clk 0:01:51]}  exd4 {[%clk 0:02:06]} 18. Qxg7 {[%clk 0:01:50]}  dxc3+ {[%clk 0:01:56]} 19. Kh1 {[%clk 0:01:49]}  O-O-O {[%clk 0:01:57]} 20. Nf4 {[%clk 0:01:42]}  Ne5 {[%clk 0:01:40]} 21. Be2 {[%clk 0:01:32]}  Bxe4 {[%clk 0:01:25]} 22. Rac1 {[%clk 0:01:29]}  Be3 {[%clk 0:00:52]} 23. Bg4+ {[%clk 0:01:24]}  Kb8 {[%clk 0:00:46]} 24. Rce1 {[%clk 0:01:21]}  Rhg8 {[%clk 0:00:44]} 25. Qf6 {[%clk 0:01:16]}  Nxg4 {[%clk 0:00:42]} 26. Qxa6 {[%clk 0:01:12]}  Bb7 {[%clk 0:00:31]} 27. Qxb5 {[%clk 0:01:11]}  Bxf4 {[%clk 0:00:31]} 28. h3 {[%clk 0:00:58]}  Ne3 {[%clk 0:00:27]} 29. Rf3 {[%clk 0:00:52]}  Nxg2 {[%clk 0:00:22]} 30. Rc1 {[%clk 0:00:41]}  Nh4 {[%clk 0:00:14]} 31. Rxc3 {[%clk 0:00:35]}  Nxf3 {[%clk 0:00:14]} 32. Rxf3 {[%clk 0:00:36]}  Rd1+ {[%clk 0:00:13]} 33. Qf1 {[%clk 0:00:29]}  Rxf1# {[%clk 0:00:13]} 0-1


[Site "https://www.chess.com"]

[Event "Titled Tuesday Blitz August 08 Early 2023"]
[White "MateoReyes"]
[Black "Ncatt"]
[WhiteElo "2465"]
[BlackElo "2318"]
[Result "0-1"]
[Round "4"]
[TimeControl "180+1"]
[Date "2023.08.08"]
[WhiteClock "0:00:09"]
[BlackClock "0:00:33"]
[Board "226"]

1. Nf3 {[%clk 0:02:59]}  d5 {[%clk 0:02:59]} 2. d4 {[%clk 0:02:58]}  Nf6 {[%clk 0:02:59]} 3. c4 {[%clk 0:02:58]}  c6 {[%clk 0:03:00]} 4. Nc3 {[%clk 0:02:58]}  e6 {[%clk 0:02:59]} 5. cxd5 {[%clk 0:02:56]}  exd5 {[%clk 0:02:58]} 6. Bg5 {[%clk 0:02:56]}  h6 {[%clk 0:02:55]} 7. Bh4 {[%clk 0:02:56]}  Be7 {[%clk 0:02:55]} 8. e3 {[%clk 0:02:55]}  Ne4 {[%clk 0:02:55]} 9. Bxe7 {[%clk 0:02:53]}  Qxe7 {[%clk 0:02:55]} 10. Bd3 {[%clk 0:02:54]}  O-O {[%clk 0:02:54]} 11. Qc2 {[%clk 0:02:53]}  Nd6 {[%clk 0:02:50]} 12. O-O {[%clk 0:02:52]}  Nd7 {[%clk 0:02:48]} 13. Rae1 {[%clk 0:02:50]}  Nf6 {[%clk 0:02:48]} 14. Ne5 {[%clk 0:02:49]}  g6 {[%clk 0:02:48]} 15. f3 {[%clk 0:02:48]}  Be6 {[%clk 0:02:33]} 16. e4 {[%clk 0:02:45]}  Rac8 {[%clk 0:02:30]} 17. Nxg6 {[%clk 0:02:40]}  fxg6 {[%clk 0:02:28]} 18. e5 {[%clk 0:02:40]}  Nf5 {[%clk 0:02:25]} 19. exf6 {[%clk 0:02:39]}  Qxf6 {[%clk 0:02:25]} 20. Bxf5 {[%clk 0:02:34]}  Qxd4+ {[%clk 0:02:23]} 21. Kh1 {[%clk 0:02:29]}  Bxf5 {[%clk 0:02:23]} 22. Qc1 {[%clk 0:02:29]}  Qg7 {[%clk 0:02:19]} 23. Ne2 {[%clk 0:02:18]}  Bd3 {[%clk 0:02:15]} 24. Qd2 {[%clk 0:02:18]}  Ba6 {[%clk 0:02:14]} 25. Rf2 {[%clk 0:02:16]}  Rce8 {[%clk 0:02:12]} 26. Ng3 {[%clk 0:02:14]}  h5 {[%clk 0:01:59]} 27. Nf1 {[%clk 0:02:03]}  Qf7 {[%clk 0:01:50]} 28. Rc1 {[%clk 0:01:49]}  Re6 {[%clk 0:01:44]} 29. h3 {[%clk 0:01:45]}  Rfe8 {[%clk 0:01:43]} 30. Qg5 {[%clk 0:01:34]}  Re5 {[%clk 0:01:37]} 31. Qg3 {[%clk 0:01:31]}  Qf6 {[%clk 0:01:31]} 32. Nd2 {[%clk 0:01:22]}  Re2 {[%clk 0:01:25]} 33. Nb3 {[%clk 0:01:12]}  h4 {[%clk 0:01:18]} 34. Rxe2 {[%clk 0:01:10]}  Rxe2 {[%clk 0:01:15]} 35. Qb8+ {[%clk 0:01:06]}  Kh7 {[%clk 0:01:11]} 36. Qc7+ {[%clk 0:01:04]}  Qe7 {[%clk 0:01:09]} 37. Qf4 {[%clk 0:01:02]}  Rxb2 {[%clk 0:01:05]} 38. Nd4 {[%clk 0:00:57]}  Rxa2 {[%clk 0:00:58]} 39. Kh2 {[%clk 0:00:55]}  Ra4 {[%clk 0:00:46]} 40. Qd2 {[%clk 0:00:49]}  Qe5+ {[%clk 0:00:45]} 41. Kh1 {[%clk 0:00:46]}  Qxd4 {[%clk 0:00:42]} 42. Qg5 {[%clk 0:00:46]}  Ra1 {[%clk 0:00:40]} 43. Qe7+ {[%clk 0:00:44]}  Kh6 {[%clk 0:00:40]} 44. Qf8+ {[%clk 0:00:43]}  Kg5 {[%clk 0:00:39]} 45. f4+ {[%clk 0:00:38]}  Qxf4 {[%clk 0:00:35]} 46. Qxf4+ {[%clk 0:00:26]}  Kxf4 {[%clk 0:00:35]} 47. Rxa1 {[%clk 0:00:26]}  d4 {[%clk 0:00:36]} 48. Kg1 {[%clk 0:00:26]}  Ke3 {[%clk 0:00:34]} 49. Re1+ {[%clk 0:00:22]}  Kd2 {[%clk 0:00:33]} 50. Kf2 {[%clk 0:00:22]}  c5 {[%clk 0:00:32]} 51. Re5 {[%clk 0:00:18]}  c4 {[%clk 0:00:32]} 52. Re4 {[%clk 0:00:18]}  d3 {[%clk 0:00:32]} 53. Rxh4 {[%clk 0:00:18]}  c3 {[%clk 0:00:32]} 54. Rh8 {[%clk 0:00:16]}  c2 {[%clk 0:00:33]} 55. Rc8 {[%clk 0:00:09]}  c1=Q {[%clk 0:00:33]} 0-1


[Site "https://www.chess.com"]

[Event "Titled Tuesday Blitz August 08 Early 2023"]
[White "Player, Edmund C"]
[Black "Buscar, Michael"]
[WhiteFideId "406520"]
[BlackFideId "2603616"]
[WhiteElo "2260"]
[BlackElo "2391"]
[Result "1-0"]
[Round "4"]
[TimeControl "180+1"]
[Date "2023.08.08"]
[WhiteClock "0:01:37"]
[BlackClock "0:00:49"]
[Board "228"]

1. e4 {[%clk 0:03:00]}  c5 {[%clk 0:02:55]} 2. Nf3 {[%clk 0:03:01]}  Nc6 {[%clk 0:02:54]} 3. Bb5 {[%clk 0:03:01]}  Nf6 {[%clk 0:02:54]} 4. Bxc6 {[%clk 0:02:59]}  dxc6 {[%clk 0:02:52]} 5. Nc3 {[%clk 0:02:59]}  g6 {[%clk 0:02:51]} 6. O-O {[%clk 0:02:58]}  Bg7 {[%clk 0:02:51]} 7. e5 {[%clk 0:02:55]}  Nd5 {[%clk 0:02:50]} 8. Ne4 {[%clk 0:02:48]}  b6 {[%clk 0:02:48]} 9. d3 {[%clk 0:02:48]}  Bg4 {[%clk 0:02:46]} 10. Re1 {[%clk 0:02:37]}  Bxe5 {[%clk 0:02:40]} 11. Nxc5 {[%clk 0:02:25]}  Bxh2+ {[%clk 0:02:31]} 12. Kxh2 {[%clk 0:02:26]}  Qd6+ {[%clk 0:02:30]} 13. Kg1 {[%clk 0:02:22]}  Qxc5 {[%clk 0:02:30]} 14. d4 {[%clk 0:02:14]}  Bxf3 {[%clk 0:02:20]} 15. Qxf3 {[%clk 0:02:09]}  Qxd4 {[%clk 0:02:18]} 16. Bh6 {[%clk 0:02:05]}  Qf6 {[%clk 0:02:02]} 17. Qxf6 {[%clk 0:02:02]}  Nxf6 {[%clk 0:01:53]} 18. Bg7 {[%clk 0:02:03]}  O-O-O {[%clk 0:01:34]} 19. Bxh8 {[%clk 0:01:57]}  Rxh8 {[%clk 0:01:32]} 20. Rxe7 {[%clk 0:01:57]}  Rd8 {[%clk 0:01:06]} 21. Rxf7 {[%clk 0:01:55]}  Rd6 {[%clk 0:01:06]} 22. Rxa7 {[%clk 0:01:54]}  Kb8 {[%clk 0:01:03]} 23. Rf7 {[%clk 0:01:51]}  h5 {[%clk 0:01:01]} 24. Re1 {[%clk 0:01:50]}  Nd7 {[%clk 0:00:55]} 25. Ree7 {[%clk 0:01:39]}  Nf6 {[%clk 0:00:49]} 26. Rf8+ {[%clk 0:01:37]} 1-0


[Site "https://www.chess.com"]

[Event "Titled Tuesday Blitz August 08 Early 2023"]
[White "Fernandez Hernandez, Gerardo"]
[Black "Stachanczyk, Jacek"]
[WhiteFideId "2207400"]
[BlackFideId "1116657"]
[WhiteElo "2230"]
[BlackElo "2354"]
[Result "1-0"]
[Round "4"]
[TimeControl "180+1"]
[Date "2023.08.08"]
[WhiteClock "0:01:51"]
[BlackClock "0:01:17"]
[Board "231"]

1. e4 {[%clk 0:03:00]}  c5 {[%clk 0:02:59]} 2. Nc3 {[%clk 0:02:56]}  Nc6 {[%clk 0:02:59]} 3. f4 {[%clk 0:02:56]}  g6 {[%clk 0:02:58]} 4. Nf3 {[%clk 0:02:56]}  Bg7 {[%clk 0:02:59]} 5. a3 {[%clk 0:02:56]}  e6 {[%clk 0:02:55]} 6. b4 {[%clk 0:02:56]}  cxb4 {[%clk 0:02:55]} 7. axb4 {[%clk 0:02:56]}  Nxb4 {[%clk 0:02:54]} 8. Ba3 {[%clk 0:02:56]}  Nc6 {[%clk 0:02:50]} 9. Nb5 {[%clk 0:02:55]}  Nge7 {[%clk 0:02:41]} 10. Bd6 {[%clk 0:02:49]}  Qb6 {[%clk 0:01:42]} 11. Nc7+ {[%clk 0:02:18]}  Kd8 {[%clk 0:01:41]} 12. Nxa8 {[%clk 0:02:10]}  Qb2 {[%clk 0:01:17]} 13. c3 {[%clk 0:01:51]} 1-0


[Site "https://www.chess.com"]

[Event "Titled Tuesday Blitz August 08 Early 2023"]
[White "Korpics, Zsolt"]
[Black "Petersson, Kjell"]
[WhiteFideId "705241"]
[BlackFideId "1705148"]
[WhiteElo "2344"]
[BlackElo "2205"]
[Result "1-0"]
[Round "4"]
[TimeControl "180+1"]
[Date "2023.08.08"]
[WhiteClock "0:00:07"]
[BlackClock "0:00:16"]
[Board "232"]

1. e4 {[%clk 0:03:00]}  c5 {[%clk 0:02:59]} 2. Nf3 {[%clk 0:03:00]}  d6 {[%clk 0:02:59]} 3. Nc3 {[%clk 0:03:00]}  g6 {[%clk 0:02:58]} 4. d4 {[%clk 0:02:49]}  cxd4 {[%clk 0:02:57]} 5. Qxd4 {[%clk 0:02:40]}  Nf6 {[%clk 0:02:56]} 6. e5 {[%clk 0:02:41]}  Nc6 {[%clk 0:02:56]} 7. Bb5 {[%clk 0:02:40]}  Ng4 {[%clk 0:02:52]} 8. e6 {[%clk 0:02:32]}  f6 {[%clk 0:02:43]} 9. Qxg4 {[%clk 0:02:31]}  f5 {[%clk 0:02:27]} 10. Qa4 {[%clk 0:02:19]}  Bxe6 {[%clk 0:02:17]} 11. Nd4 {[%clk 0:02:07]}  Bd7 {[%clk 0:02:16]} 12. Nxc6 {[%clk 0:02:03]}  bxc6 {[%clk 0:02:16]} 13. Bxc6 {[%clk 0:02:03]}  Bxc6 {[%clk 0:02:14]} 14. Qxc6+ {[%clk 0:02:02]}  Kf7 {[%clk 0:02:14]} 15. Bg5 {[%clk 0:01:55]}  Bg7 {[%clk 0:02:11]} 16. Qd5+ {[%clk 0:01:46]}  Kf8 {[%clk 0:02:08]} 17. O-O {[%clk 0:01:41]}  h6 {[%clk 0:02:09]} 18. Bf4 {[%clk 0:01:34]}  Bf6 {[%clk 0:02:05]} 19. Be3 {[%clk 0:01:14]}  Kg7 {[%clk 0:01:53]} 20. Rad1 {[%clk 0:01:08]}  Rb8 {[%clk 0:01:45]} 21. Bxa7 {[%clk 0:01:04]}  Rxb2 {[%clk 0:01:45]} 22. Bd4 {[%clk 0:00:41]}  e5 {[%clk 0:01:44]} 23. Be3 {[%clk 0:00:41]}  Rxc2 {[%clk 0:01:43]} 24. Qb3 {[%clk 0:00:41]}  Rxc3 {[%clk 0:01:36]} 25. Qxc3 {[%clk 0:00:40]}  d5 {[%clk 0:01:32]} 26. Qc6 {[%clk 0:00:24]}  d4 {[%clk 0:01:30]} 27. Qb7+ {[%clk 0:00:24]}  Be7 {[%clk 0:01:26]} 28. Bc1 {[%clk 0:00:19]}  Kf8 {[%clk 0:01:15]} 29. Rfe1 {[%clk 0:00:19]}  Bd6 {[%clk 0:01:12]} 30. Qd5 {[%clk 0:00:14]}  Kg7 {[%clk 0:01:05]} 31. Rxe5 {[%clk 0:00:11]}  Bxe5 {[%clk 0:01:04]} 32. Qxe5+ {[%clk 0:00:12]}  Qf6 {[%clk 0:01:00]} 33. Qxf6+ {[%clk 0:00:11]}  Kxf6 {[%clk 0:01:01]} 34. Rxd4 {[%clk 0:00:12]}  Rc8 {[%clk 0:00:59]} 35. Rd1 {[%clk 0:00:11]}  Rc2 {[%clk 0:00:56]} 36. a3 {[%clk 0:00:12]}  Ke5 {[%clk 0:00:56]} 37. Kf1 {[%clk 0:00:12]}  Ke4 {[%clk 0:00:56]} 38. Be3 {[%clk 0:00:10]}  Ra2 {[%clk 0:00:55]} 39. Rd4+ {[%clk 0:00:09]}  Ke5 {[%clk 0:00:55]} 40. a4 {[%clk 0:00:07]}  g5 {[%clk 0:00:54]} 41. Rb4 {[%clk 0:00:05]}  f4 {[%clk 0:00:54]} 42. Bd4+ {[%clk 0:00:05]}  Kd5 {[%clk 0:00:51]} 43. f3 {[%clk 0:00:06]}  Rc2 {[%clk 0:00:47]} 44. Bf2 {[%clk 0:00:06]}  Rc1+ {[%clk 0:00:47]} 45. Be1 {[%clk 0:00:06]}  Kc5 {[%clk 0:00:46]} 46. Rb5+ {[%clk 0:00:06]}  Kc6 {[%clk 0:00:45]} 47. Ra5 {[%clk 0:00:05]}  Kb6 {[%clk 0:00:45]} 48. Rb5+ {[%clk 0:00:05]}  Kc6 {[%clk 0:00:42]} 49. Rf5 {[%clk 0:00:05]}  Ra1 {[%clk 0:00:39]} 50. a5 {[%clk 0:00:06]}  Kd6 {[%clk 0:00:37]} 51. Rf6+ {[%clk 0:00:06]}  Ke5 {[%clk 0:00:36]} 52. Rxh6 {[%clk 0:00:06]}  Kf5 {[%clk 0:00:32]} 53. Rb6 {[%clk 0:00:06]}  Ke5 {[%clk 0:00:26]} 54. Rh6 {[%clk 0:00:05]}  Kf5 {[%clk 0:00:25]} 55. h4 {[%clk 0:00:06]}  g4 {[%clk 0:00:23]} 56. Rh5+ {[%clk 0:00:06]}  Kg6 {[%clk 0:00:22]} 57. fxg4 {[%clk 0:00:07]}  Kf6 {[%clk 0:00:19]} 58. Rf5+ {[%clk 0:00:07]}  Kg6 {[%clk 0:00:16]} 59. Rxf4 {[%clk 0:00:07]} 1-0


[Site "https://www.chess.com"]